fUST/lending_fUST_20250810
["ID","MTS","AMOUNT","RATE_DAILY","PERIOD"]
[378355367,1754836241160,-466.53697395,0.00020541,2]
[378355369,1754836241170,-460.0,0.00020541,2]
[378355371,1754836241181,-460.0,0.00020541,2]
[378355372,1754836241191,-460.0,0.00020541,2]
[378355373,1754836241201,-460.0,0.00020541,2]
[378355374,1754836241211,-464.87873263,0.00020541,2]
[378355375,1754836241222,-460.0,0.00020541,2]
[378355376,1754836241232,-460.0,0.00020541,2]
[378355377,1754836241241,-460.0,0.00020541,2]
[378355378,1754836241250,-819.74,0.00020541,2]
[378355379,1754836241260,-460.0,0.00020541,2]
[378355380,1754836241269,-460.0,0.00020541,2]
[378355381,1754836241278,-274.77440191,0.00020541,2]
[378355382,1754836241288,-460.0,0.00020541,2]
[378355383,1754836241298,-460.0,0.00020541,2]
[378355384,1754836241307,-460.0,0.00020541,2]
[378355385,1754836241316,-460.0,0.00020541,2]
[378355386,1754836241326,-460.0,0.00020541,2]
[378355387,1754836241336,-460.0,0.00020541,2]
[378355388,1754836241345,-460.0,0.00020541,2]
[378355389,1754836241355,-460.0,0.00020541,2]
[378355390,1754836241364,-460.0,0.00020541,2]
[378355391,1754836241373,-460.0,0.00020541,2]
[378355392,1754836241383,-460.0,0.00020541,2]
[378355393,1754836241392,-460.0,0.00020541,2]
[378355394,1754836241402,-460.0,0.00020541,2]
[378355395,1754836241411,-460.0,0.00020541,2]
[378355396,1754836241422,-460.0,0.00020541,2]
[378355397,1754836241431,-460.0,0.00020541,2]
[378355398,1754836241441,-460.0,0.00020541,2]
[378355399,1754836241450,-460.0,0.00020541,2]
[378355400,1754836241460,-460.0,0.00020541,2]
[378355401,1754836241469,-460.0,0.00020541,2]
[378355402,1754836241479,-460.0,0.00020541,2]
[378355403,1754836241488,-460.0,0.00020541,2]
[378355404,1754836241498,-460.0,0.00020541,2]
[378355405,1754836241507,-460.0,0.00020541,2]
[378355406,1754836241516,-460.0,0.00020541,2]
[378355407,1754836241526,-460.0,0.00020541,2]
[378355408,1754836241535,-460.0,0.00020541,2]
[378355409,1754836241545,-460.0,0.00020541,2]
[378355410,1754836241554,-460.0,0.00020541,2]
[378355411,1754836241563,-460.0,0.00020541,2]
[378355412,1754836241573,-460.0,0.00020541,2]
[378355413,1754836241583,-460.0,0.00020541,2]
[378355414,1754836241592,-460.0,0.00020541,2]
[378355415,1754836241602,-460.0,0.00020541,2]
[378355416,1754836241612,-463.33235557,0.00020541,2]
[378355417,1754836241622,-460.0,0.00020541,2]
[378355418,1754836241632,-460.0,0.00020541,2]
[378355419,1754836241641,-460.0,0.00020541,2]
[378355420,1754836241651,-460.0,0.00020541,2]
[378355421,1754836241661,-460.0,0.00020541,2]
[378355422,1754836241672,-200.0,0.00020541,10]
[378355423,1754836241681,-460.0,0.00020541,2]
[378355424,1754836241691,-204.50431,0.00020541,10]
[378355425,1754836241700,-462.56439583,0.00020541,2]
[378355426,1754836241710,-460.0,0.00020541,2]
[378355427,1754836241720,-857.4,0.00020541,2]
[378355428,1754836241729,-460.0,0.00020541,2]
[378355429,1754836241739,-463.6315806,0.00020541,2]
[378355430,1754836241748,-460.0,0.00020541,2]
[378355431,1754836241758,-460.0,0.00020541,2]
[378355432,1754836241768,-460.0,0.00020715,2]
[378355433,1754836241777,-500.0,0.00020721,2]
[378355434,1754836241786,-504.88271123,0.00020721,2]
[378355435,1754836241796,-500.0,0.00020721,2]
[378355436,1754836241806,-860.69494779,0.00020721,2]
[378355437,1754836241815,-618.4586846,0.00020721,2]
[378355438,1754836241825,-1000.0,0.00020721,2]
[378355439,1754836241835,-1000.0,0.00020721,2]
[378355440,1754836241844,-1000.0,0.00020721,2]
[378355441,1754836241853,-503.60378836,0.00020721,2]
[378355442,1754836241863,-501.78201911,0.00020721,2]
[378355443,1754836241872,-460.0,0.00020728,2]
[378355444,1754836241882,-460.0,0.00020728,2]
[378355445,1754836241891,-460.0,0.00020728,2]
[378355446,1754836241900,-460.0,0.00020728,2]
[378355447,1754836241911,-292.27,0.00020728,2]
[378355448,1754836241922,-460.0,0.00020728,2]
[378355449,1754836241932,-460.0,0.00020728,2]
[378355450,1754836241941,-477.34,0.00020728,2]
[378355451,1754836241951,-460.0,0.00020814,2]
[378355452,1754836241961,-294.5142553,0.00020814,2]
[378355453,1754836241970,-1097.53,0.00020814,2]
[378355454,1754836241980,-460.0,0.00020814,2]
[378355455,1754836241990,-460.0,0.00020814,2]
[378355456,1754836241999,-568.78045949,0.00020814,2]
[378355457,1754836242009,-460.0,0.00020814,2]
[378355458,1754836242018,-189.54395054,0.00020814,2]
[378355459,1754836242027,-460.0,0.00020814,2]
[378355460,1754836242037,-460.0,0.00020814,2]
[378355461,1754836242047,-801.28,0.00020814,2]
[378355462,1754836242056,-460.0,0.00020814,2]
[378355463,1754836242066,-460.0,0.00020814,2]
[378355464,1754836242076,-819.74,0.00020815,2]
[378355465,1754836242087,-460.0,0.00020815,2]
[378355466,1754836242096,-514.62,0.00020815,2]
[378355468,1754836242104,-460.0,0.00020815,2]
[378355469,1754836242114,-539.32,0.00020815,2]
[378355470,1754836242124,-460.0,0.00020815,2]
[378355472,1754836242137,-460.0,0.00020815,2]
[378355473,1754836242146,-460.0,0.00020815,2]
[378355474,1754836242155,-460.0,0.00020815,2]
[378355476,1754836242164,-460.0,0.00020815,2]
[378355477,1754836242177,-460.0,0.00020815,2]
[378355478,1754836242186,-460.0,0.00020815,2]
[378355480,1754836242197,-460.0,0.00020815,2]
[378355482,1754836242206,-460.0,0.00020815,2]
[378355484,1754836242216,-460.0,0.00020815,2]
[378355486,1754836242226,-460.0,0.00020815,2]
[378355488,1754836242235,-460.0,0.00020815,2]
[378355490,1754836242245,-460.0,0.00020815,2]
[378355491,1754836242254,-857.4,0.00020815,2]
[378355493,1754836242263,-460.0,0.00020815,2]
[378355495,1754836242273,-460.0,0.00020815,2]
[378355497,1754836242282,-200.0,0.000209,15]
[378355499,1754836242292,-300.0,0.000209,15]
[378355501,1754836242302,-13104.56618285,0.00020902,2]
[378355504,1754836242312,-500.0,0.00020917,2]
[378355505,1754836242321,-500.0,0.00020917,2]
[378355507,1754836242330,-573.52765742,0.00020973,2]
[378355509,1754836242339,-500.0,0.00020973,2]
[378355511,1754836242348,-500.0,0.00020973,2]
[378355513,1754836242358,-500.0,0.00020973,2]
[378355515,1754836242367,-500.0,0.00020973,2]
[378355517,1754836242377,-500.0,0.00020973,2]
[378355519,1754836242387,-392.42102901,0.00020973,2]
[378355521,1754836242396,-500.0,0.00020973,2]
[378355523,1754836242406,-500.0,0.00020973,2]
[378355525,1754836242415,-500.0,0.00020973,2]
[378355527,1754836242425,-459.48783659,0.00020973,2]
[378355529,1754836242435,-500.0,0.00020973,2]
[378355530,1754836242444,-500.0,0.00020973,2]
[378355531,1754836242454,-500.0,0.00020973,2]
[378355532,1754836242463,-323.42095798,0.00020973,2]
[378355533,1754836242472,-500.0,0.00020973,2]
[378355546,1754836242587,-500.0,0.00020973,2]
[378355548,1754836242597,-500.0,0.00020973,2]
[378355550,1754836242606,-500.0,0.00020973,2]
[378355552,1754836242616,-500.0,0.00020973,2]
[378355554,1754836242627,-500.0,0.00020973,2]
[378355556,1754836242636,-419.76110825,0.00020973,2]
[378355558,1754836242646,-500.0,0.00020973,2]
[378355560,1754836242656,-500.0,0.00020973,2]
[378355562,1754836242665,-500.0,0.00020973,2]
[378355564,1754836242678,-500.0,0.00020973,2]
[378355566,1754836242687,-500.0,0.00020973,2]
[378355568,1754836242696,-500.0,0.00020973,2]
[378355570,1754836242706,-460.0,0.00020989,2]
[378355572,1754836242716,-452.40015317,0.00021002,2]
[378355574,1754836242725,-460.0,0.00021002,2]
[378355576,1754836242735,-460.0,0.00021002,2]
[378355578,1754836242744,-154.91,0.00021002,2]
[378355580,1754836242753,-460.0,0.00021002,2]
[378355582,1754836242762,-460.0,0.00021002,2]
[378355584,1754836242771,-477.34,0.00021002,2]
[378355586,1754836242781,-1097.53,0.00021088,2]
[378355588,1754836242790,-460.0,0.00021088,2]
[378355590,1754836242799,-801.28,0.00021088,2]
[378355592,1754836242809,-819.74,0.00021089,2]
[378355594,1754836242818,-460.0,0.00021089,2]
[378355596,1754836242828,-460.0,0.00021089,2]
[378355598,1754836242838,-460.0,0.00021089,2]
[378355600,1754836242848,-460.0,0.00021089,2]
[378355602,1754836242858,-460.0,0.00021089,2]
[378355604,1754836242868,-160.1,0.00021089,2]
[378355606,1754836242878,-460.0,0.00021089,2]
[378355608,1754836242888,-460.0,0.00021089,2]
[378355610,1754836242898,-460.0,0.00021089,2]
[378355612,1754836242907,-460.0,0.00021089,2]
[378355614,1754836242916,-857.4,0.00021089,2]
[378355616,1754836242927,-460.0,0.00021089,2]
[378355618,1754836242936,-460.0,0.00021089,2]
[378355620,1754836242946,-724.46620555,0.00021249,2]
[378355622,1754836242955,-460.0,0.00021263,2]
[378355624,1754836242964,-197.1234758,0.00021268,2]
[378355626,1754836242973,-460.0,0.00021276,2]
[378355628,1754836242983,-460.0,0.00021276,2]
[378355630,1754836242992,-353.55675244,0.00021276,2]
[378355632,1754836243001,-477.34,0.00021276,2]
[378355633,1754836243011,-300.0,0.00021326,2]
[378355635,1754836243021,-548.67404503,0.00021346,2]
[378355638,1754836243030,-500.0,0.00021346,2]
[378355639,1754836243039,-500.0,0.00021346,2]
[378355641,1754836243050,-500.0,0.00021346,2]
[378355643,1754836243060,-500.0,0.00021346,2]
[378355645,1754836243070,-500.0,0.00021346,2]
[378355647,1754836243079,-500.0,0.00021346,2]
[378355649,1754836243089,-500.0,0.00021346,2]
[378355651,1754836243098,-500.0,0.00021346,2]
[378355653,1754836243108,-500.0,0.00021346,2]
[378355655,1754836243118,-500.0,0.00021346,2]
[378355657,1754836243133,-500.0,0.00021346,2]
[378355659,1754836243146,-500.0,0.00021346,2]
[378355660,1754836243156,-500.0,0.00021346,2]
[378355662,1754836243166,-500.0,0.00021346,2]
[378355664,1754836243177,-500.0,0.00021346,2]
[378355666,1754836243188,-460.0,0.00021347,2]
[378355668,1754836243199,-460.0,0.00021347,2]
[378355669,1754836243209,-500.0,0.00021347,2]
[378355671,1754836243219,-581.44832431,0.00021347,2]
[378355673,1754836243229,-460.0,0.00021347,2]
[378355675,1754836243239,-460.0,0.00021349,2]
[378355677,1754836243249,-460.0,0.00021349,2]
[378355679,1754836243259,-477.08515886,0.00021349,2]
[378355681,1754836243269,-534.19228666,0.00021349,2]
[378355683,1754836243279,-461.98095436,0.00021349,2]
[378355685,1754836243287,-460.0,0.00021349,2]
[378355687,1754836243297,-461.3860334,0.00021349,2]
[378355689,1754836243307,-460.0,0.00021349,2]
[378355691,1754836243317,-460.0,0.00021349,2]
[378355693,1754836243327,-460.0,0.00021349,2]
[378355695,1754836243337,-460.0,0.00021349,2]
[378355697,1754836243346,-502.54602278,0.00021349,2]
[378355699,1754836243355,-460.0,0.00021349,2]
[378355701,1754836243365,-460.0,0.00021349,2]
[378355703,1754836243374,-460.0,0.00021349,2]
[378355706,1754836243384,-460.0,0.00021349,2]
[378355708,1754836243393,-460.0,0.00021349,2]
[378355710,1754836243403,-461.40730287,0.00021349,2]
[378355712,1754836243412,-411.99846423,0.00021349,2]
[378355714,1754836243424,-460.80904765,0.00021349,2]
[378355716,1754836243433,-460.0,0.00021349,2]
[378355718,1754836243443,-460.0,0.00021349,2]
[378355720,1754836243452,-460.0,0.00021349,2]
[378355722,1754836243461,-468.61417389,0.00021349,2]
[378355724,1754836243471,-460.0,0.00021349,2]
[378355726,1754836243480,-463.32612942,0.00021349,2]
[378355727,1754836243490,-460.0,0.00021349,2]
[378355728,1754836243499,-460.0,0.00021349,2]
[378355730,1754836243508,-460.0,0.00021349,2]
[378355732,1754836243517,-464.77455933,0.00021349,2]
[378355734,1754836243527,-460.0,0.00021349,2]
[378355736,1754836243536,-460.0,0.00021349,2]
[378355738,1754836243545,-460.0,0.00021349,2]
[378355740,1754836243555,-460.0,0.00021349,2]
[378355742,1754836243564,-392.57266389,0.00021349,2]
[378355744,1754836243573,-460.89828243,0.00021349,2]
[378355746,1754836243582,-460.0,0.00021349,2]
[378355748,1754836243592,-460.0,0.00021349,2]
[378355751,1754836243602,-460.0,0.00021349,2]
[378355754,1754836243611,-460.25038625,0.00021349,2]
[378355758,1754836243621,-460.0,0.00021349,2]
[378355760,1754836243630,-500.0,0.00021349,2]
[378355762,1754836243640,-460.0,0.00021349,2]
[378355764,1754836243649,-463.92317678,0.00021349,2]
[378355767,1754836243659,-462.7284341,0.00021349,2]
[378355769,1754836243668,-460.0,0.00021349,2]
[378355772,1754836243679,-460.0,0.00021349,2]
[378355774,1754836243688,-464.82266288,0.00021349,2]
[378355776,1754836243698,-460.0,0.00021349,2]
[378355777,1754836243708,-460.0,0.00021349,2]
[378355779,1754836243717,-460.0,0.00021349,2]
[378355781,1754836243726,-460.0,0.00021349,2]
[378355782,1754836243735,-460.0,0.00021349,2]
[378355784,1754836243745,-460.0,0.00021349,2]
[378355786,1754836243754,-460.0,0.00021349,2]
[378355789,1754836243764,-460.0,0.00021349,2]
[378355790,1754836243774,-460.0,0.00021349,2]
[378355791,1754836243783,-460.0,0.00021349,2]
[378355792,1754836243792,-460.0,0.00021349,2]
[378355793,1754836243802,-460.0,0.00021349,2]
[378355795,1754836243811,-460.0,0.00021349,2]
[378355797,1754836243820,-460.0,0.00021349,2]
[378355799,1754836243830,-463.69141058,0.00021349,2]
[378355801,1754836243839,-460.0,0.00021349,2]
[378355803,1754836243848,-463.36368681,0.00021349,2]
[378355805,1754836243859,-460.0,0.00021349,2]
[378355807,1754836243868,-461.34075019,0.00021349,2]
[378355808,1754836243877,-460.83817378,0.00021349,2]
[378355809,1754836243887,-460.0,0.00021349,2]
[378355810,1754836243896,-460.0,0.00021349,2]
[378355811,1754836243906,-171.11178437,0.00021349,2]
[378355812,1754836243915,-460.0,0.00021349,2]
[378355813,1754836243927,-460.0,0.00021349,2]
[378355814,1754836243936,-463.43373622,0.00021349,2]
[378355815,1754836243945,-462.06849886,0.00021349,2]
[378355816,1754836243955,-460.0,0.00021349,2]
[378355817,1754836243964,-460.0,0.00021349,2]
[378355818,1754836243973,-460.0,0.00021349,2]
[378355819,1754836243982,-460.0,0.00021349,2]
[378355820,1754836243992,-460.6773623,0.00021349,2]
[378355821,1754836244002,-460.0,0.00021349,2]
[378355822,1754836244011,-460.0,0.00021349,2]
[378355823,1754836244020,-460.0,0.00021349,2]
[378355824,1754836244030,-462.86757288,0.00021349,2]
[378355825,1754836244039,-460.0,0.00021349,2]
[378355826,1754836244050,-460.29617002,0.00021349,2]
[378355827,1754836244060,-460.0,0.00021349,2]
[378355828,1754836244070,-460.0,0.00021349,2]
[378355829,1754836244080,-460.0,0.00021349,2]
[378355830,1754836244090,-206.77182841,0.00021349,2]
[378355831,1754836244108,-460.0,0.00021349,2]
[378355832,1754836244119,-460.0,0.00021349,2]
[378355834,1754836244133,-460.0,0.00021349,2]
[378355835,1754836244154,-463.29666506,0.00021349,2]
[378355836,1754836244167,-460.0,0.00021349,2]
[378355837,1754836244178,-460.0,0.00021349,2]
[378355838,1754836244188,-608.98332606,0.00021349,2]
[378355839,1754836244197,-460.0,0.00021349,2]
[378355840,1754836244209,-460.0,0.00021349,2]
[378355841,1754836244220,-460.0,0.00021349,2]
[378355842,1754836244230,-460.0,0.00021349,2]
[378355843,1754836244240,-460.0,0.00021349,2]
[378355844,1754836244250,-460.0,0.00021349,2]
[378355845,1754836244260,-460.0,0.00021349,2]
[378355846,1754836244271,-462.62629045,0.00021349,2]
[378355847,1754836244281,-604.43240967,0.00021349,2]
[378355848,1754836244291,-460.0,0.00021349,2]
[378355849,1754836244301,-460.0,0.00021349,2]
[378355850,1754836244310,-460.0,0.00021349,2]
[378355851,1754836244321,-460.0,0.00021349,2]
[378355852,1754836244336,-460.0,0.00021349,2]
[378355853,1754836244346,-1000.0,0.00021349,2]
[378355854,1754836244356,-463.24424232,0.00021349,2]
[378355855,1754836244365,-463.38461717,0.00021349,2]
[378355856,1754836244375,-460.0,0.00021349,2]
[378355857,1754836244384,-460.0,0.00021349,2]
[378355858,1754836244396,-460.72477592,0.00021349,2]
[378355859,1754836244407,-462.0314437,0.00021349,2]
[378355860,1754836244416,-460.0,0.00021349,2]
[378355861,1754836244427,-460.0,0.00021349,2]
[378355862,1754836244437,-461.6741559,0.00021349,2]
[378355863,1754836244447,-460.56858194,0.00021349,2]
[378355864,1754836244456,-460.0,0.00021349,2]
[378355865,1754836244466,-460.84126169,0.00021349,2]
[378355866,1754836244475,-461.44731364,0.00021349,2]
[378355868,1754836244484,-460.0,0.00021349,2]
[378355870,1754836244494,-460.0,0.00021349,2]
[378355872,1754836244503,-463.35638808,0.00021349,2]
[378355873,1754836244512,-460.0,0.00021349,2]
[378355874,1754836244521,-460.0,0.00021349,2]
[378355875,1754836244531,-500.0,0.00021349,2]
[378355876,1754836244540,-711.35,0.00021349,2]
[378355877,1754836244549,-462.42935251,0.00021349,2]
[378355878,1754836244559,-460.0,0.00021349,2]
[378355879,1754836244568,-460.0,0.00021349,2]
[378355880,1754836244577,-368.16803903,0.00021349,2]
[378355882,1754836244587,-460.0,0.00021349,2]
[378355884,1754836244597,-460.0,0.00021349,2]
[378355886,1754836244606,-462.81319605,0.00021349,2]
[378355887,1754836244615,-460.0,0.00021349,2]
[378355888,1754836244624,-460.0,0.00021349,2]
[378355889,1754836244634,-460.0,0.00021349,2]
[378355890,1754836244643,-460.0,0.00021349,2]
[378355891,1754836244652,-460.0,0.00021349,2]
[378355892,1754836244661,-463.52554596,0.00021349,2]
[378355893,1754836244671,-468.11222101,0.00021349,2]
[378355894,1754836244681,-460.0,0.00021349,2]
[378355895,1754836244690,-460.0,0.00021349,2]
[378355896,1754836244700,-460.0,0.00021349,2]
[378355897,1754836244710,-460.57262316,0.00021349,2]
[378355898,1754836244720,-460.0,0.00021349,2]
[378355899,1754836244729,-460.0,0.00021349,2]
[378355900,1754836244739,-460.0,0.00021349,2]
[378355901,1754836244749,-460.0,0.00021349,2]
[378355902,1754836244759,-460.0,0.00021349,2]
[378355903,1754836244768,-460.0,0.00021349,2]
[378355904,1754836244778,-1097.53,0.00021362,2]
[378355905,1754836244787,-460.0,0.00021362,2]
[378355906,1754836244796,-801.28,0.00021362,2]
[378355907,1754836244806,-160.0,0.00021363,2]
[378355908,1754836244815,-819.74,0.00021363,2]
[378355909,1754836244825,-500.0,0.00021363,2]
[378355910,1754836244834,-460.0,0.00021363,2]
[378355911,1754836244843,-460.0,0.00021363,2]
[378355912,1754836244853,-460.0,0.00021363,2]
[378355913,1754836244862,-460.0,0.00021363,2]
[378355914,1754836244872,-460.0,0.00021363,2]
[378355915,1754836244881,-460.0,0.00021363,2]
[378355916,1754836244890,-543.04,0.00021363,2]
[378355917,1754836244901,-857.4,0.00021363,2]
[378355918,1754836244910,-460.0,0.00021363,2]
[378355919,1754836244920,-553.13,0.00021363,2]
[378355920,1754836244930,-160.0,0.00021367,2]
[378355921,1754836244970,-160.0,0.00021367,2]
[378355922,1754836244980,-160.0,0.00021367,2]
[378355923,1754836244989,-160.0,0.00021367,2]
[378355924,1754836244999,-527.86640923,0.00021367,2]
[378355925,1754836245008,-160.0,0.00021367,2]
[378355926,1754836245018,-843.0869304,0.00021367,2]
[378355927,1754836245027,-231.96268195,0.00021367,2]
[378355928,1754836245036,-160.0,0.00021367,2]
[378355929,1754836245045,-215.44987349,0.00021367,2]
[378355930,1754836245055,-12668.57659669,0.00021367,2]
[378355931,1754836245065,-160.0,0.00021367,2]
[378355932,1754836245074,-461.62346162,0.00021367,2]
[378355933,1754836245084,-216.64838636,0.00021367,2]
[378355934,1754836245094,-312.16666667,0.00021367,2]
[378355935,1754836245103,-160.0,0.00021367,2]
[378355936,1754836245112,-158.42720061,0.00021373,2]
[378355937,1754836245122,-248.437386,0.00021373,2]
[378355938,1754836245133,-500.0,0.00021373,2]
[378355939,1754836245143,-500.0,0.00021373,2]
[378355940,1754836245152,-160.01231715,0.00021373,2]
[378355941,1754836245161,-158.42822798,0.00021373,2]
[378355942,1754836245170,-500.0,0.00021373,2]
[378355943,1754836245182,-185.21426028,0.00021373,2]
[378355944,1754836245191,-1000.0,0.00021521,2]
[378355945,1754836245201,-501.53174054,0.00021521,2]
[378355946,1754836245213,-511.56889762,0.00021521,2]
[378355947,1754836245223,-1000.0,0.00021521,2]
[378355948,1754836245232,-1000.0,0.00021521,2]
[378355949,1754836245241,-500.0,0.00021521,2]
[378355950,1754836245250,-1000.0,0.00021521,2]
[378355951,1754836245260,-500.0,0.00021521,2]
[378355953,1754836245269,-1000.0,0.00021521,2]
[378355954,1754836245278,-1000.0,0.00021521,2]
[378355955,1754836245288,-531.85452103,0.00021521,2]
[378355956,1754836245297,-1000.0,0.00021521,2]
[378355957,1754836245307,-1000.0,0.00021521,2]
[378355958,1754836245315,-1000.0,0.00021521,2]
[378355959,1754836245325,-500.0,0.00021526,2]
[378355960,1754836245335,-500.0,0.00021526,2]
[378355961,1754836245345,-460.0,0.00021537,2]
[378355962,1754836245355,-460.0,0.0002155,2]
[378355963,1754836245364,-460.0,0.0002155,2]
[378355964,1754836245373,-477.34,0.0002155,2]
[378355965,1754836245383,-468.21200807,0.00021621,2]
[378355966,1754836245392,-460.0,0.00021621,2]
[378355967,1754836245402,-460.0,0.00021623,2]
[378355968,1754836245411,-460.0,0.00021623,2]
[378355969,1754836245421,-460.0,0.00021623,2]
[378355970,1754836245435,-187.85884647,0.00021623,2]
[378355971,1754836245456,-461.17017348,0.00021623,2]
[378355972,1754836245478,-460.0,0.00021623,2]
[378355973,1754836245499,-465.87003239,0.00021623,2]
[378355974,1754836245519,-467.56181778,0.00021623,2]
[378355975,1754836245541,-460.96634695,0.00021623,2]
[378355976,1754836245563,-461.64051878,0.00021623,2]
[378355977,1754836245584,-460.0,0.00021623,2]
[378355978,1754836245604,-460.0,0.00021623,2]
[378355979,1754836245626,-460.0,0.00021623,2]
[378355980,1754836245646,-460.0,0.00021623,2]
[378355981,1754836245669,-460.0,0.00021623,2]
[378355982,1754836245695,-469.27275619,0.00021623,2]
[378355983,1754836245719,-460.0,0.00021623,2]
[378355984,1754836245741,-460.0,0.00021623,2]
[378355985,1754836245767,-460.78,0.00021623,2]
[378355986,1754836245790,-158.33347761,0.00021623,2]
[378355987,1754836245810,-460.0,0.00021623,2]
[378355988,1754836245820,-462.28002268,0.00021623,2]
[378355990,1754836245829,-460.0,0.00021623,2]
[378355992,1754836245839,-460.0,0.00021623,2]
[378355993,1754836245848,-460.0,0.00021623,2]
[378355995,1754836245858,-460.0,0.00021623,2]
[378355996,1754836245868,-460.0,0.00021623,2]
[378355997,1754836245879,-711.35,0.00021623,2]
[378355998,1754836245888,-460.0,0.00021623,2]
[378355999,1754836245898,-460.0,0.00021623,2]
[378356000,1754836245907,-461.86521781,0.00021623,2]
[378356001,1754836245917,-460.0,0.00021623,2]
[378356002,1754836245929,-460.0,0.00021623,2]
[378356003,1754836245939,-460.0,0.00021623,2]
[378356005,1754836245950,-3505.7,0.00021627,3]
[378356007,1754836245960,-1752.86,0.00021627,3]
[378356009,1754836245971,-876.42,0.00021627,3]
[378356011,1754836245981,-438.22,0.00021627,3]
[378356013,1754836245991,-1097.53,0.00021636,2]
[378356015,1754836246001,-460.0,0.00021636,2]
[378356017,1754836246012,-801.28,0.00021636,2]
[378356018,1754836246023,-819.74,0.00021637,2]
[378356019,1754836246033,-460.0,0.00021637,2]
[378356021,1754836246044,-460.0,0.00021637,2]
[378356022,1754836246054,-460.0,0.00021637,2]
[378356023,1754836246064,-271.68,0.00021637,2]
[378356024,1754836246074,-460.0,0.00021637,2]
[378356026,1754836246087,-460.0,0.00021637,2]
[378356028,1754836246097,-857.4,0.00021637,2]
[378356030,1754836246108,-1466.35257073,0.00021655,2]
[378356032,1754836246117,-204.35678653,0.00021689,2]
[378356034,1754836246131,-460.0,0.00021811,2]
[378356036,1754836246141,-460.0,0.00021824,2]
[378356038,1754836246151,-460.0,0.00021824,2]
[378356040,1754836246162,-477.34,0.00021824,2]
[378356042,1754836246175,-462.9242016,0.00021897,2]
[378356044,1754836246185,-460.0,0.00021897,2]
[378356046,1754836246195,-463.21125081,0.00021897,2]
[378356048,1754836246206,-460.0,0.00021897,2]
[378356050,1754836246214,-460.0,0.00021897,2]
[378356052,1754836246224,-711.35,0.00021897,2]
[378356054,1754836246234,-460.0,0.00021897,2]
[378356056,1754836246243,-460.0,0.00021897,2]
[378356058,1754836246253,-460.0,0.00021897,2]
[378356060,1754836246263,-460.0,0.00021897,2]
[378356062,1754836246272,-460.0,0.00021909,2]
[378356064,1754836246282,-460.0,0.00021909,2]
[378356066,1754836246292,-460.0,0.00021909,2]
[378356068,1754836246302,-460.0,0.00021909,2]
[378356070,1754836246311,-460.0,0.00021909,2]
[378356072,1754836246321,-465.27086061,0.00021909,2]
[378356074,1754836246331,-460.0,0.00021909,2]
[378356076,1754836246342,-460.0,0.00021909,2]
[378356078,1754836246351,-460.0,0.00021909,2]
[378356080,1754836246361,-460.0,0.00021909,2]
[378356082,1754836246371,-460.0,0.00021909,2]
[378356084,1754836246380,-460.0,0.00021909,2]
[378356086,1754836246389,-322.8260865,0.00021909,2]
[378356088,1754836246399,-460.0,0.00021909,2]